fUSD/lending_fUSD_20240327
["ID","MTS","AMOUNT","RATE_DAILY","PERIOD"]
[320698231,1711506642941,-779.80874953,0.00037283,30]
[320698232,1711506642952,-385.67450172,0.00037283,30]
[320698233,1711506643033,-2951.52100116,0.00037283,30]
[320698234,1711506643143,-3251.4736506,0.00037283,30]
[320698235,1711506643315,-432.16,0.00037283,30]
[320698239,1711506646097,-2180.10492399,0.00037283,30]
[320698240,1711506646108,-2732.00830892,0.00039,120]
[320698241,1711506646121,-323.96694508,0.00039,120]
[320698242,1711506646330,-1556.94763139,0.00039,120]
[320698243,1711506646340,-199.0,0.000396,2]
[320698244,1711506646350,-274.8231189,0.00039861,2]
[320698245,1711506646359,-499.99,0.00043191,2]
[320698246,1711506646368,-274.8231189,0.00043191,2]
[320698247,1711506646377,-206.2,0.00044357,2]
[320698248,1711506646387,-469.56,0.00045942,2]
[320698249,1711506646399,-2000.0,0.00046,120]
[320698250,1711506646410,-150.99,0.00046,10]
[320698251,1711506646420,-547.22557412,0.00046132,12]
[320698252,1711506646429,-296.85,0.00046172,2]
[320698253,1711506646438,-250.0,0.00046207,120]
[320698254,1711506646448,-1000.0,0.00046222,2]
[320698255,1711506646456,-10000.0,0.00046227,60]
[320698256,1711506646466,-23900.0,0.00046232,2]
[320698257,1711506646475,-500.0,0.00046251,2]
[320698258,1711506646483,-215.2,0.00046257,120]
[320698259,1711506646492,-250.0,0.00046281,110]
[320698260,1711506646502,-179.59,0.00046482,120]
[320698261,1711506646511,-274.8231189,0.00046521,2]
[320698262,1711506646522,-250.0,0.00046537,2]
[320698263,1711506646531,-474.07,0.00046588,2]
[320698264,1711506646540,-206.2,0.00046621,2]
[320698265,1711506646550,-161.58,0.00046637,2]
[320698266,1711506646563,-703.09,0.00046663,2]
[320698267,1711506646572,-165.84417013,0.00046995,30]
[320698268,1711506646582,-1000.0,0.00047,2]
[320698269,1711506646591,-270.88,0.00047047,120]
[320698270,1711506646601,-161.58,0.00047245,2]
[320698271,1711506646610,-152.10517398,0.00047288,30]
[320698272,1711506646619,-176.25,0.00047338,2]
[320698273,1711506646629,-175.42943668,0.00047348,30]
[320698274,1711506646638,-163.8934105,0.00047503,30]
[320698275,1711506646647,-160.90054399,0.00047564,30]
[320698276,1711506646656,-1000.0,0.00047833,2]
[320698277,1711506646665,-161.58,0.00047853,2]
[320698278,1711506646674,-266.04,0.00047914,120]
[320698279,1711506646683,-742.87522,0.00047945,17]
[320698280,1711506646692,-2000.0,0.00048,120]
[320698281,1711506646701,-1000.0,0.0004801,2]
[320698282,1711506646710,-1000.0,0.0004802,2]
[320698283,1711506646719,-517.72,0.00048078,2]
[320698284,1711506646728,-517.72,0.00048078,2]
[320698285,1711506646737,-415.7,0.00048078,2]
[320698286,1711506646746,-517.72,0.00048078,2]
[320698287,1711506646755,-219.06,0.00048078,2]
[320698288,1711506646764,-534.49,0.00048178,2]
[320698289,1711506646773,-415.7,0.00048178,2]
[320698290,1711506646782,-166.8,0.00048178,2]
[320698291,1711506646791,-308.98,0.00048178,2]
[320698292,1711506646800,-517.72,0.00048178,2]
[320698293,1711506646809,-415.7,0.00048178,2]
[320698294,1711506646818,-161.39,0.00048178,2]
[320698295,1711506646827,-415.7,0.00048178,2]
[320698296,1711506646837,-517.72,0.00048178,2]
[320698297,1711506646845,-161.39,0.00048178,2]
[320698298,1711506646855,-415.7,0.00048178,2]
[320698299,1711506646866,-517.72,0.00048178,2]
[320698300,1711506646875,-161.39,0.00048178,2]
[320698301,1711506646884,-517.72,0.00048178,2]
[320698302,1711506646893,-415.7,0.00048178,2]
[320698303,1711506646902,-415.7,0.00048178,2]
[320698304,1711506646912,-161.58,0.0004846,2]
[320698305,1711506646921,-469.56,0.00048682,2]
[320698306,1711506646930,-210.7926606,0.00048779,20]
[320698307,1711506646940,-317.46885953,0.0004878,2]
[320698308,1711506646950,-406.8898242,0.00048797,120]
[320698309,1711506646960,-13277.66341102,0.00048798,10]
[320698310,1711506646974,-9223.14082502,0.00048798,10]
[320698311,1711506646985,-5895.72528088,0.00048798,10]
[320698312,1711506658935,560.81294073,0.00017701,2]
[320698313,1711506708662,808.94881944,0.00017701,2]
[320698314,1711507644113,-236.3459447,0.00036428,2]
[320698315,1711507644133,-155.0,0.00036428,4]
[320698316,1711507644152,-171.98992029,0.00036429,2]
[320698317,1711507644171,-155.06460703,0.00036529,4]
[320698318,1711507644190,-573.51278609,0.00036529,4]
[320698319,1711507647092,-155.0,0.00036427,4]
[320698320,1711507647113,-152.02507851,0.00036529,4]
[320698321,1711507647134,-2779.45843386,0.00036531,2]
[320698322,1711507773163,-155.19389774,0.0003653,4]
[320698323,1711507773188,-348.1442459,0.00036531,2]
[320698338,1711507832761,-792.5901174,0.00036431,2]
[320698339,1711507832776,-2213.0788826,0.00036431,2]
[320698340,1711507832787,-1182.0711174,0.00036531,2]
[320698341,1711507832802,-3615.17313625,0.00036531,2]
[320698342,1711507832823,-628.78466563,0.00036531,2]
[320698343,1711507832883,-955.00000001,0.00036531,2]
[320698344,1711507832948,-1712.1632,0.00036531,2]
[320698345,1711507833011,-88779.20520095,0.00036531,2]
[320698346,1711507833023,-555.0,0.00037322,2]
[320698347,1711507833034,-8000.0,0.00042,2]
[320698348,1711507833045,-1850.5247,0.00045,60]
[320698349,1711507833056,-239.48,0.00045003,2]
[320698350,1711507833067,-155.44819277,0.00046225,4]
[320698351,1711507833078,-1000.0,0.000467,7]
[320698352,1711507833088,-200.0,0.00046912,2]
[320698353,1711507833099,-250.0,0.00046917,120]
[320698354,1711507833109,-155.84,0.00046918,2]
[320698355,1711507833119,-216.7,0.00046918,120]
[320698356,1711507833131,-499.99,0.00046918,2]
[320698357,1711507833142,-250.0,0.00046942,110]
[320698358,1711507833152,-800.0,0.00046976,2]
[320698359,1711507833165,-2107.12,0.00046988,2]
[320698361,1711507833175,-1068.76,0.00046998,120]
[320698363,1711507833185,-179.59,0.0004702,120]
[320698365,1711507833196,-175.32,0.00047112,120]
[320698367,1711507833207,-1000.0,0.000472,7]
[320698368,1711507833217,-200.0,0.00047231,2]
[320698369,1711507833227,-239.48,0.00047267,2]
[320698370,1711507833237,-161.58,0.00047477,2]
[320698371,1711507833247,-175.8,0.00047561,2]
[320698372,1711507833258,-161.58,0.0004783,2]
[320698373,1711507833269,-156.79,0.00047883,2]
[320698374,1711507833279,-164.39881782,0.00047891,30]
[320698375,1711507833290,-156.79,0.00047901,2]
[320698376,1711507833300,-156.79,0.0004792,2]
[320698377,1711507833310,-156.79,0.00047938,2]
[320698378,1711507833320,-156.79,0.00047956,2]
[320698379,1711507833330,-156.79,0.00047975,2]
[320698380,1711507833340,-221.7,0.0004798,120]
[320698381,1711507833350,-156.79,0.00047993,2]
[320698382,1711507833361,-156.79,0.00048012,2]
[320698383,1711507833371,-156.79,0.0004803,2]
[320698384,1711507833381,-156.79,0.00048048,2]
[320698385,1711507833391,-156.79,0.00048067,2]
[320698386,1711507833401,-156.79,0.00048085,2]
[320698387,1711507833413,-1000.0,0.000481,7]
[320698388,1711507833423,-156.79,0.00048104,2]
[320698389,1711507833433,-156.79,0.00048122,2]
[320698390,1711507833443,-161.58,0.00048184,2]
[320698391,1711507833457,-221.97,0.00048352,2]
[320698392,1711507833468,-150.0,0.00048352,2]
[320698393,1711507833479,-150.0,0.00048352,2]
[320698394,1711507833693,-150.0,0.00048352,2]
[320698395,1711507833708,-150.0,0.00048352,2]
[320698396,1711507833718,-168.92247965,0.00048391,3]
[320698397,1711507833727,-161.032711,0.00048498,95]
[320698398,1711507833736,-161.58,0.00048537,2]
[320698399,1711507833745,-155.87567523,0.00048591,10]
[320698400,1711507833754,-164.89387134,0.000486,2]
[320698401,1711507833763,-4881.2632812,0.000486,2]
[320698402,1711507833772,-500.0,0.0004868,2]
[320698403,1711507833781,-1000.0,0.0004868,2]
[320698404,1711507833790,-820.13341048,0.0004868,13]
[320698405,1711507833799,-32864.57365267,0.000487,15]
[320698406,1711507833809,-1016.0,0.000487,117]
[320698407,1711507833818,-210.7926606,0.00048779,20]
[320698408,1711507833827,-129041.14975861,0.0004878,2]
[320698409,1711507833839,-28158.95153371,0.0004878,2]
[320698410,1711507833850,-1521.67440768,0.0004878,2]
[320698411,1711507833859,-2697.46881,0.0004878,43]
[320698412,1711507833868,-805.37,0.00048795,2]
[320698413,1711507833877,-1619.34525851,0.00048796,4]
[320698414,1711507833887,-661.24161983,0.00048797,4]
[320698415,1711507833898,-1767.94545494,0.00048797,4]
[320698416,1711507833908,-2120.29114441,0.00048798,10]
[320698417,1711507833920,-9324.08666281,0.00048798,10]
[320698418,1711507833933,-393.9,0.00048798,10]
[320698419,1711507838138,-116043.80276476,0.00048798,10]
[320698420,1711507838148,-22041.61858759,0.00048879,4]
[320698421,1711507838158,-5011.65703422,0.00048879,2]
[320698422,1711507838169,-206.88559454,0.00048879,2]
[320698423,1711507838179,-33491.27147268,0.0004888,2]
[320698424,1711507838189,-161.58,0.00048891,2]
[320698425,1711507838199,-317.46885953,0.000489,2]
[320698426,1711507838209,-70042.77491034,0.00049,30]
[320698427,1711507838218,-2000.0,0.00049,120]
[320698428,1711507838229,-1000.0,0.00049,2]
[320698429,1711507838239,-1012.0,0.00049,7]
[320698430,1711507838249,-161.58,0.00049244,2]
[320698431,1711507838258,-111505.16540088,0.00049249,10]
[320698432,1711507838267,-1272.0,0.000493,2]
[320698433,1711507838276,-152.10517398,0.00049303,30]
[320698434,1711507838285,-423.0,0.00049315,30]
[320698435,1711507838294,-300.0,0.00049315,30]
[320698436,1711507838303,-300.0,0.00049315,30]
[320698437,1711507838312,-300.0,0.00049315,30]
[320698438,1711507838323,-300.0,0.00049315,30]
[320698439,1711507838333,-300.0,0.00049315,30]
[320698440,1711507838342,-300.0,0.00049315,30]
[320698441,1711507838351,-300.0,0.00049315,30]
[320698442,1711507838361,-300.0,0.00049315,30]
[320698443,1711507838370,-170.48,0.00049406,2]
[320698444,1711507838379,-151.032711,0.00049498,97]
[320698445,1711507838389,-399.59333409,0.000495,120]
[320698446,1711507838398,-239.48,0.00049531,2]
[320698447,1711507838407,-155.56868315,0.00049574,30]
[320698448,1711507838418,-164.95661228,0.00049579,30]
[320698449,1711507838432,-161.58,0.00049598,2]
[320698450,1711507838443,-155.84,0.00049658,2]
[320698451,1711507838453,-161.58,0.00049951,2]
[320698452,1711507838463,-98216.54655301,0.0004998,2]
[320698453,1711507838473,-502.39997504,0.0004999,3]
[320698454,1711507838483,-5000.0,0.0005,30]
[320698455,1711507838493,-1005.38671096,0.0005,2]
[320698456,1711507838503,-200.02519308,0.0005,120]
[320698457,1711507838513,-445.54977857,0.0005,30]
[320698458,1711507838523,-407.38137854,0.0005,120]
[320698459,1711507838533,-16020.16926827,0.0005,120]
[320698460,1711507838542,-218.9024358,0.0005,120]
[320698461,1711507838551,-11287.95014764,0.0005,120]
[320698462,1711507838561,-1184.98650053,0.0005,120]
[320698463,1711507838572,-323.49863044,0.0005,30]
[320698464,1711507838582,-781.39015283,0.0005,120]
[320698465,1711507838592,-250.0,0.0005,60]
[320698466,1711507838603,-250.0,0.0005,60]
[320698467,1711507838613,-15292.21992083,0.0005,120]
[320698468,1711507838622,-1514.88755377,0.0005,120]
[320698469,1711507838632,-997.0,0.0005,8]
[320698470,1711507838642,-1000.0,0.0005,2]
[320698471,1711507838651,-239.29982263,0.00050248,60]
[320698472,1711507838662,-151.032711,0.00050498,99]
[320698473,1711507838674,-164.89387134,0.00050589,2]
[320698474,1711507838683,-4881.26328119,0.00050589,2]
[320698475,1711507838697,-317.46885953,0.00050856,2]
[320698476,1711507838706,-7607.39627598,0.000509,30]
[320698477,1711507838716,-14019.30784291,0.00051,20]
[320698478,1711507838725,-179.44,0.00051,120]
[320698479,1711507838735,-820.13341043,0.00051226,14]
[320698480,1711507838745,-151.032711,0.00051498,101]
[320698481,1711507838754,-50571.98149041,0.000515,120]
[320698482,1711507838763,-239.48,0.00051795,2]
[320698483,1711507838773,-4036.87849543,0.000519,29]
[320698484,1711507838783,-171.98992028,0.000519,2]
[320698485,1711507838792,-161.63264132,0.000519,51]
[320698486,1711507838801,-160.4162,0.000519,120]
[320698487,1711507838811,-354.0,0.00051999,7]
[320698488,1711507838820,-152.0,0.00051999,120]
[320698489,1711507838829,-2019.71,0.00052,120]
[320698490,1711507838838,-4358.34445738,0.00052,120]
[320698491,1711507838847,-74383.31391356,0.00052,7]
[320698492,1711507838857,-181.37,0.00052,120]
[320698493,1711507838866,-1000.0,0.00052054,2]
[320698494,1711507838875,-156.20955794,0.00052195,60]
[320698495,1711507838885,-155.84,0.00052398,2]
[320698496,1711507838895,-3802.18174806,0.0005246,2]
[320698497,1711507838905,-151.032711,0.00052498,103]
[320698498,1711507838917,-2000.0,0.000525,120]
[320698499,1711507838928,-164.89387134,0.00052578,2]
[320698500,1711507838941,-4881.26328119,0.00052578,2]
[320698501,1711507838951,-155.56868315,0.00052664,60]
[320698502,1711507838962,-175.42943669,0.00052744,60]
[320698503,1711507838972,-216.7,0.00052783,120]
[320698504,1711507838985,-317.46885953,0.00052811,2]
[320698505,1711507838995,-800.0,0.00052848,120]
[320698506,1711507839006,-1000.0,0.00052876,120]
[320698507,1711507839016,-2000.0,0.00053,120]
[320698508,1711507839025,-200.0,0.00053135,120]
[320698509,1711507839035,-158.00876727,0.0005316,60]
[320698510,1711507839044,-4036.87849534,0.00053227,30]
[320698511,1711507839054,-3000.0,0.00053426,60]
[320698512,1711507839065,-151.032711,0.00053498,105]
[320698513,1711507839075,-2000.0,0.000535,120]
[320698514,1711507839086,-2736.94,0.0005354,120]
[320698515,1711507839095,-155.56868315,0.00053615,60]
[320698516,1711507839105,-675.0,0.00053644,120]
[320698517,1711507839115,-1000.0,0.00053698,120]
[320698518,1711507839124,-820.13341043,0.00053771,14]
[320698519,1711507839133,-2697.46881,0.0005378,43]
[320698520,1711507839143,-1000.0,0.0005378,2]
[320698521,1711507839152,-3000.0,0.00053817,60]
[320698522,1711507839165,-2000.0,0.00054,120]
[320698523,1711507839174,-1172.0,0.00054,30]
[320698524,1711507839183,-10000.0,0.00054047,30]
[320698525,1711507839192,-239.48,0.00054059,2]
[320698526,1711507839201,-2568.28626985,0.00054165,60]
[320698527,1711507839210,-167.24713414,0.00054316,60]
[320698528,1711507839220,-151.032711,0.00054498,107]
[320698529,1711507839229,-2000.0,0.000545,120]
[320698530,1711507839239,-1000.0,0.0005452,120]
[320698531,1711507839248,-1018.22033609,0.00054521,120]
[320698532,1711507839259,-4036.87849534,0.00054555,32]
[320698533,1711507839269,-164.89387134,0.00054567,2]
[320698534,1711507839278,-4881.26328119,0.00054567,2]
[320698535,1711507839287,-3333.0,0.00054652,60]
[320698536,1711507839297,-5000.0,0.00054695,3]
[320698537,1711507839306,-152.10517398,0.00054718,60]
[320698538,1711507839315,-905.67246711,0.00054794,4]
[320698539,1711507839325,-503.69100798,0.00054794,120]
[320698540,1711507839334,-512.37819451,0.00054794,120]
[320698541,1711507839342,-502.91825248,0.00054794,120]
[320698542,1711507839351,-410.11043141,0.00054794,120]
[320698543,1711507839361,-500.0,0.00054794,120]
[320698544,1711507839371,-502.25821114,0.00054794,120]
[320698545,1711507839382,-503.01278358,0.00054794,120]
[320698546,1711507839392,-273.16915017,0.00054794,120]
[320698547,1711507839401,-480.4310076,0.00054794,120]
[320698548,1711507839411,-500.0,0.00054794,120]
[320698549,1711507839423,-524.48185927,0.00054794,120]
[320698550,1711507839432,-500.0,0.00054794,120]
[320698551,1711507839442,-529.0196296,0.00054794,120]
[320698552,1711507839452,-1000.21636664,0.00054794,120]
[320698553,1711507839461,-486.91211012,0.00054794,120]
[320698554,1711507839472,-500.0,0.00054794,120]
[320698555,1711507839482,-616.59340468,0.00054794,120]
[320698556,1711507839491,-515.0,0.00054794,120]
[320698557,1711507839501,-501.07154979,0.00054794,120]
[320698558,1711507839510,-504.71073055,0.00054794,120]
[320698559,1711507839519,-492.90293648,0.00054794,120]
[320698560,1711507839528,-292.00760839,0.00054794,120]
[320698561,1711507839537,-246.13654413,0.00054794,120]
[320698562,1711507839547,-286.9512002,0.00054794,120]
[320698563,1711507839556,-408.74103959,0.00054794,60]
[320698564,1711507839566,-522.73668589,0.00054794,120]
[320698565,1711507839577,-500.0,0.00054794,120]
[320698566,1711507839587,-504.81256639,0.00054794,120]
[320698567,1711507839598,-500.0,0.00054794,120]
[320698568,1711507839608,-239.27273113,0.00054794,120]
[320698569,1711507839618,-500.0,0.00054794,120]
[320698570,1711507839632,-545.50573936,0.00054794,30]
[320698571,1711507839641,-500.0,0.00054794,120]
[320698572,1711507839652,-498.94377354,0.00054794,120]
[320698573,1711507839664,-517.04919742,0.00054794,15]
[320698574,1711507839674,-500.0,0.00054794,120]
[320698575,1711507839684,-286.00497677,0.00054794,120]
[320698576,1711507839693,-556.48993452,0.00054794,120]
[320698577,1711507839702,-500.0,0.00054794,120]
[320698578,1711507839711,-500.0,0.00054794,120]
[320698579,1711507839721,-500.0,0.00054794,120]
[320698580,1711507839730,-3492.62,0.00054794,120]
[320698581,1711507839739,-500.0,0.00054794,120]
[320698582,1711507839749,-360.84562643,0.00054794,120]
[320698583,1711507839759,-337.63631023,0.00054794,120]
[320698584,1711507839769,-429.2,0.00054794,120]
[320698585,1711507839778,-303.28832544,0.00054794,120]
[320698586,1711507839787,-500.0,0.00054794,120]
[320698587,1711507839796,-233.5553132,0.00054794,120]
[320698588,1711507839819,-500.0,0.00054794,120]
[320698589,1711507839829,-631.10587837,0.00054794,120]
[320698590,1711507839840,-1591.91156999,0.00054794,120]
[320698591,1711507839851,-435.25477502,0.00054794,120]
[320698592,1711507839862,-500.0,0.00054794,120]
[320698593,1711507839874,-500.0,0.00054794,120]
[320698594,1711507839885,-1655.61,0.00054794,120]
[320698595,1711507839896,-527.54316158,0.00054794,120]
[320698596,1711507839908,-500.0,0.00054794,120]
[320698597,1711507839924,-500.0,0.00054794,120]
[320698598,1711507839937,-531.57064754,0.00054794,120]
[320698599,1711507839949,-500.0,0.00054794,120]
[320698600,1711507839961,-507.24707518,0.00054794,120]
[320698601,1711507839973,-500.0,0.00054794,120]
[320698602,1711507839983,-513.26635518,0.00054794,120]
[320698603,1711507839995,-500.0,0.00054794,120]
[320698605,1711507840006,-503.35691199,0.00054794,120]
[320698606,1711507840018,-500.0,0.00054794,120]
[320698607,1711507840028,-562.77562903,0.00054794,120]
[320698608,1711507840041,-544.55861658,0.00054794,120]
[320698609,1711507840053,-554.26952864,0.00054794,120]
[320698610,1711507840064,-916.19,0.00054794,120]
[320698611,1711507840075,-500.0,0.00054794,120]
[320698612,1711507840086,-526.95205319,0.00054794,120]
[320698613,1711507840097,-500.0,0.00054794,120]
[320698614,1711507840108,-500.0,0.00054794,120]
[320698615,1711507840118,-500.0,0.00054794,120]
[320698616,1711507840129,-500.0,0.00054794,120]
[320698617,1711507840140,-500.0,0.00054794,120]
[320698618,1711507840150,-500.0,0.00054794,120]
[320698619,1711507840160,-500.0,0.00054794,120]
[320698620,1711507840177,-500.0,0.00054794,120]
[320698621,1711507840188,-500.0,0.00054794,120]
[320698622,1711507840197,-518.94174663,0.00054794,120]
[320698623,1711507840207,-500.0,0.00054794,120]
[320698624,1711507840217,-500.0,0.00054794,120]
[320698625,1711507840228,-503.78912249,0.00054794,120]
[320698626,1711507840238,-590.25458528,0.00054794,120]
[320698627,1711507840248,-1427.47,0.00054794,120]
[320698628,1711507840259,-500.0,0.00054794,120]
[320698629,1711507840269,-523.58042404,0.00054794,120]
[320698630,1711507840279,-504.60536758,0.00054794,120]
[320698631,1711507840289,-516.34089484,0.00054794,120]
[320698632,1711507840299,-500.0,0.00054794,120]
[320698633,1711507840309,-500.0,0.00054794,120]
[320698634,1711507840320,-498.60270341,0.00054794,120]
[320698635,1711507840330,-500.0,0.00054794,120]
[320698636,1711507840339,-500.0,0.00054794,120]
[320698637,1711507840349,-414.08562865,0.00054794,120]
[320698638,1711507840358,-500.0,0.00054794,120]
[320698639,1711507840368,-775.95,0.00054794,120]
[320698640,1711507840378,-500.0,0.00054794,120]
[320698641,1711507840387,-521.0326688,0.00054794,120]
[320698642,1711507840397,-632.25134013,0.00054794,120]
[320698643,1711507840406,-587.73267078,0.00054794,60]
[320698645,1711507840421,-500.0,0.00054794,120]
[320698646,1711507840430,-500.0,0.00054794,120]
[320698647,1711507840439,-500.0,0.00054794,120]
[320698648,1711507840449,-1022.73,0.00054794,120]
[320698649,1711507840458,-518.0023079,0.00054794,120]
[320698650,1711507840468,-515.23797325,0.00054794,120]
[320698651,1711507840478,-507.4068065,0.00054794,120]
[320698652,1711507840487,-356.107715,0.00054794,120]
[320698653,1711507840497,-227.50652113,0.00054794,120]
[320698654,1711507840507,-512.42317674,0.00054794,120]
[320698655,1711507840516,-216.51529573,0.00054794,120]
[320698656,1711507840529,-500.0,0.00054794,120]
[320698657,1711507840538,-500.0,0.00054794,120]
[320698658,1711507840548,-618.75800306,0.00054794,120]
[320698659,1711507840557,-911.4,0.00054794,120]
[320698660,1711507840567,-1438.22,0.00054794,120]
[320698661,1711507840577,-572.00435713,0.00054794,120]
[320698662,1711507840588,-500.0,0.00054794,120]
[320698663,1711507840598,-500.0,0.00054794,120]
[320698664,1711507840607,-500.0,0.00054794,120]
[320698666,1711507840618,-579.20338823,0.00054794,120]
[320698668,1711507840627,-500.0,0.00054794,120]
[320698669,1711507840637,-500.0,0.00054794,120]
[320698670,1711507840647,-510.02329677,0.00054794,120]
[320698671,1711507840656,-500.0,0.00054794,120]
[320698672,1711507840668,-595.26901989,0.00054794,120]
[320698673,1711507840678,-500.0,0.00054794,120]
[320698674,1711507840687,-500.0,0.00054794,120]
[320698675,1711507840697,-500.0,0.00054794,120]
[320698676,1711507840707,-11150.17,0.00054794,120]
[320698677,1711507840716,-523.24,0.00054794,120]
[320698678,1711507840725,-1416.47,0.00054794,120]
[320698679,1711507840735,-3925.04754663,0.00054794,120]
[320698680,1711507840745,-500.0,0.00054794,120]
[320698681,1711507840755,-533.97879238,0.00054794,120]
[320698682,1711507840764,-766.35,0.00054794,120]
[320698683,1711507840774,-511.79926816,0.00054794,120]
[320698684,1711507840783,-505.15556064,0.00054794,120]
[320698685,1711507840792,-510.91656363,0.00054794,120]
[320698686,1711507840802,-500.0,0.00054794,120]
[320698687,1711507840812,-500.0,0.00054794,120]
[320698688,1711507840821,-598.24027949,0.00054794,120]
[320698689,1711507840831,-500.0,0.00054794,120]
[320698690,1711507840840,-907.15,0.00054794,120]
[320698691,1711507840850,-500.0,0.00054794,120]
[320698692,1711507840860,-500.0,0.00054794,120]
[320698693,1711507840870,-500.0,0.00054794,120]
[320698694,1711507840880,-500.0,0.00054794,120]
[320698695,1711507840889,-500.0,0.00054794,120]
[320698696,1711507840899,-524.30109282,0.00054794,120]
[320698697,1711507840908,-500.0,0.00054794,120]
[320698698,1711507840919,-1408.13,0.00054794,120]
[320698699,1711507840930,-500.0,0.00054794,120]
[320698700,1711507840940,-500.0,0.00054794,120]
[320698701,1711507840950,-515.82980224,0.00054794,120]
[320698702,1711507840961,-500.0,0.00054794,120]
[320698703,1711507840971,-500.0,0.00054794,120]
[320698704,1711507840982,-500.0,0.00054794,120]
[320698705,1711507840991,-500.0,0.00054794,120]
[320698706,1711507841167,-530.60567128,0.00054794,120]
[320698707,1711507841179,-500.0,0.00054794,120]
[320698708,1711507841189,-500.0,0.00054794,120]
[320698709,1711507841199,-500.0,0.00054794,120]
[320698710,1711507841209,-162.82784531,0.00054794,120]
[320698711,1711507841218,-500.0,0.00054794,120]
[320698712,1711507841227,-419.80234802,0.00054794,120]
[320698713,1711507841236,-500.0,0.00054794,120]
[320698714,1711507841246,-413.7948661,0.00054794,120]
[320698715,1711507841255,-543.63667846,0.00054794,120]
[320698716,1711507841264,-500.0,0.00054794,120]
[320698717,1711507841274,-500.0,0.00054794,120]
[320698718,1711507841283,-500.0,0.00054794,120]
[320698719,1711507841294,-500.0,0.00054794,120]
[320698720,1711507841304,-629.88655427,0.00054794,120]
[320698721,1711507841315,-500.0,0.00054794,120]
[320698722,1711507841324,-500.0,0.00054794,120]
[320698723,1711507841334,-500.0,0.00054794,120]
[320698724,1711507841345,-500.0,0.00054794,120]
[320698725,1711507841356,-500.0,0.00054794,120]
[320698726,1711507841366,-500.0,0.00054794,120]
[320698727,1711507841375,-177.17482094,0.00054794,120]
[320698728,1711507841386,-500.01,0.00054794,120]
[320698729,1711507841396,-500.0,0.00054794,120]
[320698730,1711507841407,-500.0,0.00054794,120]
[320698731,1711507841418,-500.0,0.00054794,120]
[320698732,1711507841428,-500.0,0.00054794,120]
[320698733,1711507841437,-500.0,0.00054794,120]
[320698734,1711507841447,-1183.44,0.00054794,120]
[320698735,1711507841456,-570.81417639,0.00054794,120]
[320698736,1711507841466,-500.0,0.00054794,120]
[320698737,1711507841475,-500.0,0.00054794,120]
[320698738,1711507841484,-500.0,0.00054794,120]
[320698739,1711507841493,-500.0,0.00054794,120]
[320698740,1711507841502,-500.0,0.00054794,120]
[320698741,1711507841512,-641.61851746,0.00054794,120]
[320698742,1711507841521,-500.0,0.00054794,120]
[320698743,1711507841531,-500.0,0.00054794,120]
[320698744,1711507841541,-500.0,0.00054794,120]
[320698745,1711507841551,-500.0,0.00054794,120]
[320698746,1711507841563,-500.0,0.00054794,120]
[320698747,1711507841575,-500.0,0.00054794,120]
[320698748,1711507841584,-527.49336912,0.00054794,120]
[320698749,1711507841593,-500.0,0.00054794,120]
[320698750,1711507841602,-199.21575779,0.00054794,120]
[320698751,1711507841720,-300.78424221,0.00054794,120]
[320698752,1711507841729,-185.63074181,0.00054794,120]
[320698753,1711507841738,-2768.25,0.00054794,120]
[320698754,1711507841747,-500.0,0.00054794,120]
[320698755,1711507841757,-500.0,0.00054794,120]